[Event "Titled Tuesday Blitz May 9 Early 2023"]
[White "Weishaeutel, Moritz"]
[Black "Dinu, Dumitru-Daniel"]
[WhiteFideId "12967300"]
[BlackFideId "1208403"]
[WhiteElo "2301"]
[BlackElo "2240"]
[Result "1-0"]
[Round "05"]
[TimeControl "180+2"]
[Date "2023.05.09"]
[WhiteClock "0:01:24"]
[BlackClock "0:00:02"]

1. e4 {[%clk 0:03:00]}  c6 {[%clk 0:02:59]} 2. d3 {[%clk 0:02:56]}  d5 {[%clk 0:02:58]} 3. Nd2 {[%clk 0:02:56]}  dxe4 {[%clk 0:02:55]} 4. dxe4 {[%clk 0:02:57]}  e5 {[%clk 0:02:54]} 5. Ngf3 {[%clk 0:02:58]}  Bg4 {[%clk 0:02:51]} 6. Bc4 {[%clk 0:02:57]}  Nd7 {[%clk 0:02:25]} 7. h3 {[%clk 0:02:57]}  Bxf3 {[%clk 0:02:24]} 8. Qxf3 {[%clk 0:02:51]}  Ngf6 {[%clk 0:02:24]} 9. Qb3 {[%clk 0:02:52]}  Nc5 {[%clk 0:01:55]} 10. Bxf7+ {[%clk 0:02:52]}  Ke7 {[%clk 0:01:54]} 11. Qc4 {[%clk 0:02:52]}  Qd4 {[%clk 0:01:43]} 12. O-O {[%clk 0:02:29]}  Nfxe4 {[%clk 0:01:08]} 13. Nxe4 {[%clk 0:02:18]}  Qxc4 {[%clk 0:01:05]} 14. Bxc4 {[%clk 0:02:19]}  Nxe4 {[%clk 0:01:05]} 15. Re1 {[%clk 0:02:19]}  Nd6 {[%clk 0:01:05]} 16. Rxe5+ {[%clk 0:02:13]}  Kd7 {[%clk 0:00:56]} 17. Be6+ {[%clk 0:01:58]}  Kc7 {[%clk 0:00:56]} 18. Bf4 {[%clk 0:01:59]}  Re8 {[%clk 0:00:51]} 19. Rd1 {[%clk 0:01:55]}  Kb6 {[%clk 0:00:35]} 20. Be3+ {[%clk 0:01:36]}  Kc7 {[%clk 0:00:33]} 21. Bf4 {[%clk 0:01:34]}  Kb6 {[%clk 0:00:33]} 22. Re3 {[%clk 0:01:33]}  Nb5 {[%clk 0:00:28]} 23. a4 {[%clk 0:01:31]}  Bc5 {[%clk 0:00:21]} 24. axb5 {[%clk 0:01:24]}  Bxe3 {[%clk 0:00:02]} 25. Bxe3+ {[%clk 0:01:25]}  Kxb5 {[%clk 0:00:02]} 26. Bg4 {[%clk 0:01:25]}  c5 {[%clk 0:00:03]} 27. Bd7+ {[%clk 0:01:23]}  Kc4 {[%clk 0:00:02]} 28. Bxe8 {[%clk 0:01:24]} 1-0


[Site "https://www.chess.com"]

[Event "Titled Tuesday Blitz May 9 Early 2023"]
[White "Liu, Casper"]
[Black "Akash G"]
[WhiteFideId "1454153"]
[BlackFideId "5040299"]
[WhiteElo "2221"]
[BlackElo "2395"]
[Result "1/2-1/2"]
[Round "05"]
[TimeControl "180+2"]
[Date "2023.05.09"]
[WhiteClock "0:00:08"]
[BlackClock "0:00:41"]

1. b3 {[%clk 0:02:56]}  Nf6 {[%clk 0:02:58]} 2. Bb2 {[%clk 0:02:57]}  g6 {[%clk 0:02:59]} 3. e3 {[%clk 0:02:57]}  Bg7 {[%clk 0:02:59]} 4. h4 {[%clk 0:02:57]}  h5 {[%clk 0:02:57]} 5. Nf3 {[%clk 0:02:57]}  d6 {[%clk 0:02:56]} 6. Ng5 {[%clk 0:02:57]}  e5 {[%clk 0:02:52]} 7. d4 {[%clk 0:02:57]}  exd4 {[%clk 0:02:46]} 8. Qxd4 {[%clk 0:02:57]}  Nc6 {[%clk 0:02:44]} 9. Bb5 {[%clk 0:02:55]}  O-O {[%clk 0:02:41]} 10. Bxc6 {[%clk 0:02:54]}  bxc6 {[%clk 0:02:42]} 11. Nc3 {[%clk 0:02:50]}  c5 {[%clk 0:02:37]} 12. Qd3 {[%clk 0:02:44]}  Bb7 {[%clk 0:02:35]} 13. e4 {[%clk 0:02:40]}  Re8 {[%clk 0:02:29]} 14. O-O-O {[%clk 0:02:33]}  Ng4 {[%clk 0:02:25]} 15. Rdf1 {[%clk 0:02:05]}  a5 {[%clk 0:02:22]} 16. f3 {[%clk 0:01:44]}  Ba6 {[%clk 0:02:06]} 17. Qd5 {[%clk 0:01:43]}  Ne5 {[%clk 0:02:01]} 18. f4 {[%clk 0:01:16]}  c6 {[%clk 0:01:53]} 19. Qd2 {[%clk 0:01:16]}  Ng4 {[%clk 0:01:38]} 20. Rd1 {[%clk 0:01:05]}  Qe7 {[%clk 0:01:16]} 21. Qxd6 {[%clk 0:01:03]}  Nf2 {[%clk 0:01:16]} 22. Qxc6 {[%clk 0:00:51]}  Nxh1 {[%clk 0:01:14]} 23. Nd5 {[%clk 0:00:42]}  Qb7 {[%clk 0:01:14]} 24. Qxb7 {[%clk 0:00:34]}  Bxb7 {[%clk 0:01:13]} 25. Nc7 {[%clk 0:00:34]}  Bxb2+ {[%clk 0:01:08]} 26. Kxb2 {[%clk 0:00:34]}  Nf2 {[%clk 0:01:08]} 27. Rd7 {[%clk 0:00:33]}  Nxe4 {[%clk 0:00:57]} 28. Nxe8 {[%clk 0:00:28]}  Bc6 {[%clk 0:00:51]} 29. Rc7 {[%clk 0:00:14]}  Nxg5 {[%clk 0:00:51]} 30. Nf6+ {[%clk 0:00:10]}  Kg7 {[%clk 0:00:49]} 31. fxg5 {[%clk 0:00:10]}  Bxg2 {[%clk 0:00:49]} 32. Rxc5 {[%clk 0:00:09]}  Rd8 {[%clk 0:00:50]} 33. Rxa5 {[%clk 0:00:09]}  Bh3 {[%clk 0:00:46]} 34. a4 {[%clk 0:00:08]}  Bf5 {[%clk 0:00:45]} 35. Ra7 {[%clk 0:00:08]}  Rc8 {[%clk 0:00:44]} 36. c4 {[%clk 0:00:08]}  Be6 {[%clk 0:00:43]} 37. a5 {[%clk 0:00:08]}  Bxc4 {[%clk 0:00:42]} 38. bxc4 {[%clk 0:00:07]}  Rxc4 {[%clk 0:00:43]} 39. Ra8 {[%clk 0:00:07]}  Rb4+ {[%clk 0:00:41]} 40. Ka3 {[%clk 0:00:08]}  Rb3+ {[%clk 0:00:39]} 41. Ka2 {[%clk 0:00:04]}  Rb2+ {[%clk 0:00:40]} 42. Ka1 {[%clk 0:00:05]}  Rb1+ {[%clk 0:00:39]} 43. Ka2 {[%clk 0:00:05]}  Rb2+ {[%clk 0:00:40]} 44. Ka3 {[%clk 0:00:06]}  Rb3+ {[%clk 0:00:40]} 45. Ka4 {[%clk 0:00:07]}  Rb4+ {[%clk 0:00:40]} 46. Ka3 {[%clk 0:00:08]}  Rb3+ {[%clk 0:00:41]} 1/2-1/2


[Site "https://www.chess.com"]

[Event "Titled Tuesday Blitz May 9 Early 2023"]
[White "Koridze, Lile"]
[Black "brm72"]
[WhiteFideId "13612514"]
[WhiteElo "2047"]
[BlackElo "2589"]
[Result "0-1"]
[Round "05"]
[TimeControl "180+2"]
[Date "2023.05.09"]
[WhiteClock "0:00:17"]
[BlackClock "0:00:26"]

1. d4 {[%clk 0:03:00]}  Nf6 {[%clk 0:02:59]} 2. c4 {[%clk 0:02:58]}  e6 {[%clk 0:02:59]} 3. Nf3 {[%clk 0:02:58]}  b6 {[%clk 0:02:56]} 4. g3 {[%clk 0:02:57]}  Bb7 {[%clk 0:02:57]} 5. Bg2 {[%clk 0:02:52]}  Be7 {[%clk 0:02:57]} 6. O-O {[%clk 0:02:51]}  O-O {[%clk 0:02:57]} 7. Re1 {[%clk 0:02:49]}  Ne4 {[%clk 0:02:54]} 8. Qc2 {[%clk 0:02:46]}  f5 {[%clk 0:02:48]} 9. Nc3 {[%clk 0:02:41]}  Nxc3 {[%clk 0:02:35]} 10. Qxc3 {[%clk 0:02:40]}  Bf6 {[%clk 0:02:26]} 11. e3 {[%clk 0:02:36]}  d6 {[%clk 0:02:25]} 12. b3 {[%clk 0:02:36]}  Nd7 {[%clk 0:02:21]} 13. Bb2 {[%clk 0:02:35]}  Nc5 {[%clk 0:02:16]} 14. Rad1 {[%clk 0:02:27]}  Ne4 {[%clk 0:02:15]} 15. Qc2 {[%clk 0:02:26]}  Qe8 {[%clk 0:01:45]} 16. Nd2 {[%clk 0:02:25]}  Qg6 {[%clk 0:01:45]} 17. Nxe4 {[%clk 0:02:23]}  Bxe4 {[%clk 0:01:41]} 18. Qe2 {[%clk 0:02:20]}  Rae8 {[%clk 0:01:26]} 19. b4 {[%clk 0:02:16]}  h5 {[%clk 0:01:23]} 20. f3 {[%clk 0:01:19]}  Ba8 {[%clk 0:01:21]} 21. e4 {[%clk 0:01:15]}  h4 {[%clk 0:01:11]} 22. Qf2 {[%clk 0:01:11]}  hxg3 {[%clk 0:01:08]} 23. Qxg3 {[%clk 0:01:11]}  Qh5 {[%clk 0:01:08]} 24. Bc1 {[%clk 0:00:58]}  Bh4 {[%clk 0:00:42]} 25. Qh3 {[%clk 0:00:58]}  fxe4 {[%clk 0:00:42]} 26. Rf1 {[%clk 0:00:47]}  exf3 {[%clk 0:00:39]} 27. d5 {[%clk 0:00:36]}  fxg2 {[%clk 0:00:37]} 28. Rxf8+ {[%clk 0:00:35]}  Kxf8 {[%clk 0:00:32]} 29. Rd3 {[%clk 0:00:32]}  exd5 {[%clk 0:00:28]} 30. Rf3+ {[%clk 0:00:28]}  Kg8 {[%clk 0:00:27]} 31. Qxg2 {[%clk 0:00:17]}  dxc4 {[%clk 0:00:26]} 0-1


[Site "https://www.chess.com"]

[Event "Titled Tuesday Blitz May 9 Early 2023"]
[White "Pinto, Daniel"]
[Black "Gontcharov, Vladislav"]
[WhiteFideId "3303144"]
[BlackFideId "4123492"]
[WhiteElo "2145"]
[BlackElo "2420"]
[Result "1/2-1/2"]
[Round "05"]
[TimeControl "180+2"]
[Date "2023.05.09"]
[WhiteClock "0:00:05"]
[BlackClock "0:00:10"]

1. Nf3 {[%clk 0:03:00]}  Nf6 {[%clk 0:02:57]} 2. g3 {[%clk 0:03:01]}  c5 {[%clk 0:02:57]} 3. Bg2 {[%clk 0:03:01]}  Nc6 {[%clk 0:02:57]} 4. O-O {[%clk 0:03:01]}  e5 {[%clk 0:02:56]} 5. d3 {[%clk 0:02:59]}  d5 {[%clk 0:02:55]} 6. c4 {[%clk 0:02:52]}  d4 {[%clk 0:02:52]} 7. e3 {[%clk 0:02:51]}  Be7 {[%clk 0:02:44]} 8. exd4 {[%clk 0:02:49]}  exd4 {[%clk 0:02:38]} 9. Re1 {[%clk 0:02:48]}  O-O {[%clk 0:02:37]} 10. Bf4 {[%clk 0:02:20]}  Bd6 {[%clk 0:02:36]} 11. Bg5 {[%clk 0:02:06]}  h6 {[%clk 0:02:34]} 12. Bxf6 {[%clk 0:02:06]}  Qxf6 {[%clk 0:02:34]} 13. Nbd2 {[%clk 0:02:06]}  Qd8 {[%clk 0:02:33]} 14. a3 {[%clk 0:01:49]}  a5 {[%clk 0:02:29]} 15. h3 {[%clk 0:01:15]}  a4 {[%clk 0:02:25]} 16. Rb1 {[%clk 0:00:39]}  Qc7 {[%clk 0:02:20]} 17. b3 {[%clk 0:00:32]}  axb3 {[%clk 0:02:20]} 18. Rxb3 {[%clk 0:00:32]}  Ra7 {[%clk 0:02:18]} 19. Nh4 {[%clk 0:00:30]}  Bd7 {[%clk 0:02:09]} 20. Qh5 {[%clk 0:00:24]}  Ne7 {[%clk 0:01:43]} 21. Ne4 {[%clk 0:00:23]}  Nc8 {[%clk 0:01:12]} 22. Nxd6 {[%clk 0:00:22]}  Nxd6 {[%clk 0:01:12]} 23. Re5 {[%clk 0:00:19]}  b6 {[%clk 0:01:11]} 24. Re7 {[%clk 0:00:18]}  Qd8 {[%clk 0:01:06]} 25. Re1 {[%clk 0:00:19]}  Qf6 {[%clk 0:01:05]} 26. Nf3 {[%clk 0:00:18]}  Nc8 {[%clk 0:00:52]} 27. Qe5 {[%clk 0:00:17]}  Qd8 {[%clk 0:00:46]} 28. Qf4 {[%clk 0:00:16]}  Ba4 {[%clk 0:00:44]} 29. Rb2 {[%clk 0:00:15]}  Bc6 {[%clk 0:00:42]} 30. Rb3 {[%clk 0:00:14]}  Qd6 {[%clk 0:00:39]} 31. Ne5 {[%clk 0:00:12]}  Bxg2 {[%clk 0:00:38]} 32. Kxg2 {[%clk 0:00:13]}  Ne7 {[%clk 0:00:33]} 33. Rbb1 {[%clk 0:00:12]}  Rxa3 {[%clk 0:00:32]} 34. Qg4 {[%clk 0:00:10]}  Ng6 {[%clk 0:00:30]} 35. Nf3 {[%clk 0:00:10]}  Rxd3 {[%clk 0:00:28]} 36. h4 {[%clk 0:00:11]}  Rb8 {[%clk 0:00:22]} 37. h5 {[%clk 0:00:11]}  Nf8 {[%clk 0:00:23]} 38. Nh4 {[%clk 0:00:10]}  Qc6+ {[%clk 0:00:21]} 39. Kh2 {[%clk 0:00:09]}  Qf6 {[%clk 0:00:20]} 40. Nf5 {[%clk 0:00:09]}  Ne6 {[%clk 0:00:20]} 41. Re2 {[%clk 0:00:09]}  Rc3 {[%clk 0:00:19]} 42. Nd6 {[%clk 0:00:08]}  Rf8 {[%clk 0:00:16]} 43. Ne4 {[%clk 0:00:09]}  Qd8 {[%clk 0:00:13]} 44. Nxc3 {[%clk 0:00:09]}  dxc3 {[%clk 0:00:14]} 45. Rc2 {[%clk 0:00:08]}  Qf6 {[%clk 0:00:12]} 46. Rxb6 {[%clk 0:00:06]}  Rd8 {[%clk 0:00:12]} 47. Qe4 {[%clk 0:00:06]}  Qd4 {[%clk 0:00:09]} 48. Qe2 {[%clk 0:00:05]}  Qd3 {[%clk 0:00:08]} 49. Rb1 {[%clk 0:00:04]}  Qxe2 {[%clk 0:00:08]} 50. Rxe2 {[%clk 0:00:05]}  Nd4 {[%clk 0:00:08]} 51. Rd1 {[%clk 0:00:05]}  c2 {[%clk 0:00:08]} 52. Rxc2 {[%clk 0:00:05]}  Rb8 {[%clk 0:00:08]} 53. Rcd2 {[%clk 0:00:05]}  Rb4 {[%clk 0:00:09]} 54. Kg2 {[%clk 0:00:05]}  Rxc4 {[%clk 0:00:08]} 55. Re1 {[%clk 0:00:05]}  Kf8 {[%clk 0:00:07]} 56. Ra2 {[%clk 0:00:05]}  f5 {[%clk 0:00:08]} 57. Ra8+ {[%clk 0:00:05]}  Kf7 {[%clk 0:00:08]} 58. Ra7+ {[%clk 0:00:06]}  Kf6 {[%clk 0:00:09]} 59. f4 {[%clk 0:00:05]}  Rc2+ {[%clk 0:00:08]} 60. Kf1 {[%clk 0:00:04]}  Nf3 {[%clk 0:00:09]} 61. Ra6+ {[%clk 0:00:04]}  Kf7 {[%clk 0:00:08]} 62. Ra7+ {[%clk 0:00:04]}  Kf6 {[%clk 0:00:09]} 63. Ra6+ {[%clk 0:00:05]}  Kf7 {[%clk 0:00:09]} 64. Ra7+ {[%clk 0:00:05]}  Kf6 {[%clk 0:00:10]} 1/2-1/2


[Site "https://www.chess.com"]

[Event "Titled Tuesday Blitz May 9 Early 2023"]
[White "Bruedigam, Martin"]
[Black "Sai Han Thiha"]
[WhiteFideId "24608033"]
[BlackFideId "13012290"]
[WhiteElo "2331"]
[BlackElo "1954"]
[Result "1-0"]
[Round "05"]
[TimeControl "180+2"]
[Date "2023.05.09"]
[WhiteClock "0:01:37"]
[BlackClock "0:00:00"]

1. d4 {[%clk 0:03:00]}  Nf6 {[%clk 0:02:59]} 2. c4 {[%clk 0:03:01]}  e6 {[%clk 0:02:59]} 3. Nc3 {[%clk 0:03:01]}  Bb4 {[%clk 0:03:00]} 4. Bd2 {[%clk 0:03:02]}  O-O {[%clk 0:02:54]} 5. Nf3 {[%clk 0:03:01]}  b6 {[%clk 0:02:50]} 6. e3 {[%clk 0:03:00]}  Bb7 {[%clk 0:02:46]} 7. Bd3 {[%clk 0:03:01]}  Bxc3 {[%clk 0:02:43]} 8. Bxc3 {[%clk 0:03:02]}  Ne4 {[%clk 0:02:43]} 9. Bxe4 {[%clk 0:03:02]}  Bxe4 {[%clk 0:02:43]} 10. d5 {[%clk 0:03:03]}  d6 {[%clk 0:02:19]} 11. Qd4 {[%clk 0:03:02]}  e5 {[%clk 0:02:09]} 12. Qxe4 {[%clk 0:03:02]}  f5 {[%clk 0:02:10]} 13. Qc2 {[%clk 0:03:03]}  a5 {[%clk 0:02:08]} 14. O-O-O {[%clk 0:02:57]}  Nd7 {[%clk 0:02:07]} 15. Nd2 {[%clk 0:02:53]}  a4 {[%clk 0:02:05]} 16. Kb1 {[%clk 0:02:50]}  Nc5 {[%clk 0:02:04]} 17. Bb4 {[%clk 0:02:49]}  Qd7 {[%clk 0:01:58]} 18. Ka1 {[%clk 0:02:49]}  Rfb8 {[%clk 0:01:49]} 19. Bxc5 {[%clk 0:02:43]}  bxc5 {[%clk 0:01:49]} 20. Nb1 {[%clk 0:02:43]}  a3 {[%clk 0:01:43]} 21. Nxa3 {[%clk 0:02:42]}  Rb4 {[%clk 0:01:29]} 22. Rd3 {[%clk 0:02:42]}  Rba4 {[%clk 0:01:21]} 23. Rb3 {[%clk 0:02:39]}  R4a7 {[%clk 0:01:14]} 24. f3 {[%clk 0:02:31]}  g6 {[%clk 0:01:12]} 25. Rb5 {[%clk 0:02:22]}  Qe7 {[%clk 0:01:06]} 26. h4 {[%clk 0:02:21]}  Qf6 {[%clk 0:01:02]} 27. Qb3 {[%clk 0:02:16]}  Kg7 {[%clk 0:00:48]} 28. Rb7 {[%clk 0:02:09]}  e4 {[%clk 0:00:41]} 29. Rxa7 {[%clk 0:02:08]}  Rxa7 {[%clk 0:00:42]} 30. f4 {[%clk 0:02:05]}  Kh6 {[%clk 0:00:35]} 31. Nb5 {[%clk 0:02:05]}  Rb7 {[%clk 0:00:31]} 32. Qd1 {[%clk 0:02:02]}  Rb6 {[%clk 0:00:20]} 33. g4 {[%clk 0:01:59]}  Kg7 {[%clk 0:00:13]} 34. h5 {[%clk 0:01:57]}  c6 {[%clk 0:00:05]} 35. hxg6 {[%clk 0:01:54]}  cxb5 {[%clk 0:00:03]} 36. gxh7 {[%clk 0:01:48]}  Kh8 {[%clk 0:00:02]} 37. g5 {[%clk 0:01:44]}  Qg7 {[%clk 0:00:02]} 38. Qb3 {[%clk 0:01:42]}  Qc7 {[%clk 0:00:00]} 39. a3 {[%clk 0:01:37]} 1-0


[Site "https://www.chess.com"]

[Event "Titled Tuesday Blitz May 9 Early 2023"]
[White "Sargissyan, Sargis"]
[Black "Nikologorskiy, Konstantin"]
[WhiteFideId "13303210"]
[BlackFideId "24111708"]
[WhiteElo "2109"]
[BlackElo "2273"]
[Result "0-1"]
[Round "05"]
[TimeControl "180+2"]
[Date "2023.05.09"]
[WhiteClock "0:00:00"]
[BlackClock "0:01:29"]

1. e4 {[%clk 0:03:00]}  c5 {[%clk 0:03:00]} 2. Nc3 {[%clk 0:02:59]}  d6 {[%clk 0:03:00]} 3. Nf3 {[%clk 0:02:55]}  Nf6 {[%clk 0:03:00]} 4. d4 {[%clk 0:02:55]}  cxd4 {[%clk 0:03:01]} 5. Nxd4 {[%clk 0:02:56]}  a6 {[%clk 0:03:02]} 6. f4 {[%clk 0:02:56]}  e5 {[%clk 0:02:50]} 7. Nf3 {[%clk 0:02:55]}  Nc6 {[%clk 0:02:49]} 8. fxe5 {[%clk 0:02:51]}  dxe5 {[%clk 0:02:46]} 9. Qxd8+ {[%clk 0:02:49]}  Kxd8 {[%clk 0:02:47]} 10. Bc4 {[%clk 0:02:45]}  Bg4 {[%clk 0:02:40]} 11. Bxf7 {[%clk 0:02:31]}  Bxf3 {[%clk 0:02:40]} 12. gxf3 {[%clk 0:02:31]}  Nd4 {[%clk 0:02:41]} 13. O-O {[%clk 0:02:21]}  Nxc2 {[%clk 0:02:41]} 14. Rb1 {[%clk 0:02:21]}  Bc5+ {[%clk 0:02:37]} 15. Kg2 {[%clk 0:02:21]}  Ke7 {[%clk 0:02:33]} 16. Bb3 {[%clk 0:02:11]}  Ne3+ {[%clk 0:02:33]} 17. Bxe3 {[%clk 0:02:10]}  Bxe3 {[%clk 0:02:34]} 18. Rbd1 {[%clk 0:01:57]}  Bd4 {[%clk 0:02:31]} 19. Rd2 {[%clk 0:01:36]}  Bxc3 {[%clk 0:02:22]} 20. bxc3 {[%clk 0:01:33]}  Rhd8 {[%clk 0:02:23]} 21. Rfd1 {[%clk 0:01:16]}  Rxd2+ {[%clk 0:02:22]} 22. Rxd2 {[%clk 0:01:16]}  Nh5 {[%clk 0:02:23]} 23. Bd5 {[%clk 0:01:13]}  Nf4+ {[%clk 0:02:23]} 24. Kf2 {[%clk 0:01:13]}  Rb8 {[%clk 0:02:19]} 25. Ke3 {[%clk 0:01:03]}  b5 {[%clk 0:01:45]} 26. c4 {[%clk 0:00:25]}  Rc8 {[%clk 0:01:41]} 27. cxb5 {[%clk 0:00:22]}  axb5 {[%clk 0:01:42]} 28. Bb3 {[%clk 0:00:15]}  Rc3+ {[%clk 0:01:41]} 29. Kf2 {[%clk 0:00:15]}  Nd3+ {[%clk 0:01:37]} 30. Kg3 {[%clk 0:00:08]}  Nf4 {[%clk 0:01:34]} 31. Kf2 {[%clk 0:00:08]}  Rc1 {[%clk 0:01:35]} 32. Kg3 {[%clk 0:00:04]}  Rg1+ {[%clk 0:01:34]} 33. Kf2 {[%clk 0:00:03]}  Rh1 {[%clk 0:01:32]} 34. Kg3 {[%clk 0:00:03]}  g5 {[%clk 0:01:31]} 35. Rc2 {[%clk 0:00:03]}  Kd6 {[%clk 0:01:27]} 36. Rc8 {[%clk 0:00:03]}  Rg1+ {[%clk 0:01:27]} 37. Kf2 {[%clk 0:00:02]}  Rg2+ {[%clk 0:01:27]} 38. Kf1 {[%clk 0:00:02]}  Rxh2 {[%clk 0:01:28]} 39. Rb8 {[%clk 0:00:03]}  Kc5 {[%clk 0:01:28]} 40. Re8 {[%clk 0:00:02]}  Kd4 {[%clk 0:01:28]} 41. Rd8+ {[%clk 0:00:00]}  Ke3 {[%clk 0:01:29]} 0-1


[Site "https://www.chess.com"]

[Event "Titled Tuesday Blitz May 9 Early 2023"]
[White "Chan, Kim Yew"]
[Black "SashaKuzhilniy"]
[WhiteFideId "5717981"]
[WhiteElo "2206"]
[BlackElo "2575"]
[Result "0-1"]
[Round "05"]
[TimeControl "180+2"]
[Date "2023.05.09"]
[WhiteClock "0:00:00"]
[BlackClock "0:00:13"]

1. d4 {[%clk 0:02:54]}  Nf6 {[%clk 0:03:00]} 2. c4 {[%clk 0:02:54]}  e5 {[%clk 0:03:00]} 3. dxe5 {[%clk 0:02:54]}  Ng4 {[%clk 0:03:00]} 4. Nf3 {[%clk 0:02:55]}  Nc6 {[%clk 0:03:00]} 5. Bf4 {[%clk 0:02:48]}  Bb4+ {[%clk 0:02:58]} 6. Nbd2 {[%clk 0:02:48]}  Qe7 {[%clk 0:02:57]} 7. e3 {[%clk 0:02:48]}  Ngxe5 {[%clk 0:02:55]} 8. Nxe5 {[%clk 0:02:44]}  Nxe5 {[%clk 0:02:55]} 9. a3 {[%clk 0:02:44]}  Bc5 {[%clk 0:02:53]} 10. b4 {[%clk 0:02:40]}  Bd4 {[%clk 0:02:53]} 11. Ra2 {[%clk 0:02:27]}  d6 {[%clk 0:02:49]} 12. Be2 {[%clk 0:02:25]}  Ng6 {[%clk 0:02:49]} 13. Bg3 {[%clk 0:02:22]}  Be5 {[%clk 0:02:49]} 14. Bxe5 {[%clk 0:02:11]}  dxe5 {[%clk 0:02:47]} 15. O-O {[%clk 0:01:58]}  a5 {[%clk 0:02:43]} 16. Rb2 {[%clk 0:01:31]}  axb4 {[%clk 0:02:42]} 17. axb4 {[%clk 0:01:32]}  O-O {[%clk 0:02:41]} 18. c5 {[%clk 0:01:28]}  Rd8 {[%clk 0:02:32]} 19. Bc4 {[%clk 0:01:25]}  Be6 {[%clk 0:02:31]} 20. Qe2 {[%clk 0:01:24]}  h6 {[%clk 0:02:08]} 21. Nb3 {[%clk 0:01:12]}  b6 {[%clk 0:01:54]} 22. Rc1 {[%clk 0:01:01]}  Ra4 {[%clk 0:01:47]} 23. Bxe6 {[%clk 0:00:54]}  Qxe6 {[%clk 0:01:46]} 24. Qb5 {[%clk 0:00:54]}  Ra3 {[%clk 0:01:36]} 25. Nd2 {[%clk 0:00:46]}  Nh4 {[%clk 0:01:23]} 26. Qc4 {[%clk 0:00:37]}  Qe7 {[%clk 0:01:10]} 27. h3 {[%clk 0:00:18]}  Rad3 {[%clk 0:01:07]} 28. Ne4 {[%clk 0:00:16]}  Kh7 {[%clk 0:01:03]} 29. cxb6 {[%clk 0:00:15]}  cxb6 {[%clk 0:01:03]} 30. Ng3 {[%clk 0:00:08]}  f5 {[%clk 0:00:55]} 31. Rbc2 {[%clk 0:00:04]}  Qg5 {[%clk 0:00:52]} 32. Rc3 {[%clk 0:00:02]}  Rd2 {[%clk 0:00:48]} 33. R3c2 {[%clk 0:00:02]}  R2d3 {[%clk 0:00:45]} 34. Rc3 {[%clk 0:00:03]}  Rd1+ {[%clk 0:00:45]} 35. Rxd1 {[%clk 0:00:03]}  Rxd1+ {[%clk 0:00:45]} 36. Kh2 {[%clk 0:00:04]}  Qg6 {[%clk 0:00:21]} 37. Rc1 {[%clk 0:00:03]}  Rxc1 {[%clk 0:00:20]} 38. Qxc1 {[%clk 0:00:04]}  Qg5 {[%clk 0:00:18]} 39. Qc4 {[%clk 0:00:03]}  Ng6 {[%clk 0:00:18]} 40. Qe6 {[%clk 0:00:02]}  f4 {[%clk 0:00:17]} 41. exf4 {[%clk 0:00:03]}  exf4 {[%clk 0:00:17]} 42. Ne4 {[%clk 0:00:03]}  Qe5 {[%clk 0:00:17]} 43. Qxe5 {[%clk 0:00:03]}  Nxe5 {[%clk 0:00:18]} 44. Nd6 {[%clk 0:00:02]}  Nd3 {[%clk 0:00:17]} 45. Nb5 {[%clk 0:00:02]}  Nxb4 {[%clk 0:00:16]} 46. g3 {[%clk 0:00:01]}  Nd3 {[%clk 0:00:14]} 47. gxf4 {[%clk 0:00:01]}  Nxf2 {[%clk 0:00:14]} 48. Kg3 {[%clk 0:00:01]}  Ne4+ {[%clk 0:00:15]} 49. Kf3 {[%clk 0:00:02]}  Nc5 {[%clk 0:00:15]} 50. Ke3 {[%clk 0:00:02]}  Kg6 {[%clk 0:00:16]} 51. Nd4 {[%clk 0:00:02]}  Kf6 {[%clk 0:00:15]} 52. Kf3 {[%clk 0:00:02]}  Ne6 {[%clk 0:00:15]} 53. Nb5 {[%clk 0:00:02]}  g6 {[%clk 0:00:14]} 54. Ke4 {[%clk 0:00:00]}  Ng7 {[%clk 0:00:13]} 0-1


[Site "https://www.chess.com"]

[Event "Titled Tuesday Blitz May 9 Early 2023"]
[White "Szyszylo, Rafal"]
[Black "Agibileg, Uurtsaikh"]
[WhiteFideId "1109626"]
[BlackFideId "4901606"]
[WhiteElo "1951"]
[BlackElo "2353"]
[Result "0-1"]
[Round "05"]
[TimeControl "180+2"]
[Date "2023.05.09"]
[WhiteClock "0:00:10"]
[BlackClock "0:00:33"]

1. e4 {[%clk 0:03:00]}  c5 {[%clk 0:02:55]} 2. Nf3 {[%clk 0:02:57]}  e6 {[%clk 0:02:54]} 3. d4 {[%clk 0:02:57]}  cxd4 {[%clk 0:02:50]} 4. Nxd4 {[%clk 0:02:58]}  Nc6 {[%clk 0:02:41]} 5. Nc3 {[%clk 0:02:58]}  Qc7 {[%clk 0:02:39]} 6. Be3 {[%clk 0:02:57]}  a6 {[%clk 0:02:37]} 7. Nxc6 {[%clk 0:02:52]}  bxc6 {[%clk 0:02:35]} 8. Bd3 {[%clk 0:02:52]}  d5 {[%clk 0:02:36]} 9. f4 {[%clk 0:02:50]}  Bb4 {[%clk 0:02:32]} 10. O-O {[%clk 0:02:47]}  Ne7 {[%clk 0:02:32]} 11. Qg4 {[%clk 0:02:45]}  O-O {[%clk 0:02:26]} 12. f5 {[%clk 0:02:24]}  f6 {[%clk 0:02:08]} 13. fxe6 {[%clk 0:02:17]}  Qe5 {[%clk 0:01:59]} 14. Bf4 {[%clk 0:01:30]}  Qxe6 {[%clk 0:01:50]} 15. Qe2 {[%clk 0:01:12]}  Ng6 {[%clk 0:01:47]} 16. exd5 {[%clk 0:01:09]}  Qxe2 {[%clk 0:01:28]} 17. Nxe2 {[%clk 0:01:07]}  cxd5 {[%clk 0:01:27]} 18. Nd4 {[%clk 0:00:57]}  Bc5 {[%clk 0:01:22]} 19. c3 {[%clk 0:00:54]}  Re8 {[%clk 0:01:20]} 20. Bg3 {[%clk 0:00:52]}  Bd7 {[%clk 0:01:06]} 21. Rae1 {[%clk 0:00:51]}  Bxd4+ {[%clk 0:00:57]} 22. cxd4 {[%clk 0:00:51]}  Bb5 {[%clk 0:00:58]} 23. Rxe8+ {[%clk 0:00:44]}  Rxe8 {[%clk 0:00:57]} 24. Bxb5 {[%clk 0:00:42]}  axb5 {[%clk 0:00:58]} 25. Rc1 {[%clk 0:00:41]}  Re2 {[%clk 0:00:57]} 26. Rc5 {[%clk 0:00:39]}  Rxb2 {[%clk 0:00:56]} 27. Rxd5 {[%clk 0:00:39]}  Ne7 {[%clk 0:00:51]} 28. Rd8+ {[%clk 0:00:35]}  Kf7 {[%clk 0:00:50]} 29. Rd7 {[%clk 0:00:35]}  Ke6 {[%clk 0:00:51]} 30. Rb7 {[%clk 0:00:35]}  Nd5 {[%clk 0:00:48]} 31. Rxg7 {[%clk 0:00:35]}  Rxa2 {[%clk 0:00:48]} 32. Rxh7 {[%clk 0:00:34]}  b4 {[%clk 0:00:39]} 33. Rb7 {[%clk 0:00:34]}  Kf5 {[%clk 0:00:39]} 34. Bf2 {[%clk 0:00:34]}  Ra1+ {[%clk 0:00:38]} 35. Be1 {[%clk 0:00:34]}  Rxe1+ {[%clk 0:00:39]} 36. Kf2 {[%clk 0:00:35]}  Rb1 {[%clk 0:00:39]} 37. h4 {[%clk 0:00:31]}  Kg4 {[%clk 0:00:38]} 38. Rb5 {[%clk 0:00:26]}  Nf4 {[%clk 0:00:37]} 39. g3 {[%clk 0:00:21]}  Rb2+ {[%clk 0:00:38]} 40. Ke3 {[%clk 0:00:21]}  Kxg3 {[%clk 0:00:38]} 41. Ke4 {[%clk 0:00:20]}  Ne2 {[%clk 0:00:34]} 42. Kd5 {[%clk 0:00:10]}  Nc3+ {[%clk 0:00:33]} 0-1


[Site "https://www.chess.com"]